bitfinex-derivatives/quotes_ETHF0:USTF0_20250607
["timestamp","ask_amount","ask_price","bid_price","bid_amount"]
[1749269499478,0.06951834,2484.7,2484.6,0.8044]
[1749269499980,0.06951834,2484.7,2484.5,5.4098]
[1749269500481,0.06951834,2484.7,2484.6,0.80441]
[1749269504087,0.06951834,2484.7,2484.6,2.77211]
[1749269504776,0.06951834,2484.7,2484.6,5.97991]
[1749269505271,0.06951834,2484.7,2484.6,1.9677]
[1749269505472,0.87388834,2484.7,2484.5,6.21423]
[1749269506081,0.06951834,2484.7,2484.6,4.735]
[1749269506381,0.06951834,2484.7,2484.6,5.53941]
[1749269507878,0.00602482,2485.0,2484.9,0.80431]
[1749269508084,0.00602482,2485.0,2484.9,5.53931]
[1749269513798,0.00602482,2485.0,2484.9,8.74711]
[1749269519603,0.81030482,2485.0,2484.9,4.735]
[1749269520313,2.83134776,2485.0,2484.9,4.735]
[1749269524612,2.9008661,2485.0,2484.9,4.735]
[1749269525905,0.80447,2484.4,2484.3,4.726]
[1749269526306,2.16850909,2484.4,2484.3,4.726]
[1749269526505,4.87040909,2484.4,2484.3,4.726]
[1749269528011,0.80457,2484.1,2484.0,4.726]
[1749269528202,0.80466,2483.9,2483.7,3.50027]
[1749269528407,0.80466,2483.9,2483.8,4.726]
[1749269528813,0.80463,2484.0,2483.8,5.53067]
[1749269529003,0.80465,2483.9,2483.7,2.15839]
[1749269529214,1.48565,2483.9,2483.7,6.88439]
[1749269529515,0.681,2483.9,2483.7,6.88439]
[1749269530105,0.681,2483.9,2483.8,0.80468]
[1749269531008,3.8888,2483.9,2483.7,4.726]
[1749269531209,0.80467,2483.8,2483.7,4.726]
[1749269531407,0.8047,2483.7,2483.6,24.334]
[1749269531610,0.8047,2483.7,2483.6,29.06]
[1749269533123,3.8888,2483.9,2483.6,29.06]
[1749269533418,0.8047,2483.7,2483.6,29.06]
[1749269533717,0.8047,2483.7,2483.6,4.726]
[1749269534217,3.8888,2483.9,2483.6,4.727]
[1749269534519,0.80469,2483.8,2483.6,5.53173]
[1749269535721,0.80469,2483.8,2483.6,4.727]
[1749269535921,0.8047,2483.7,2483.6,4.727]
[1749269538320,2.01168,2483.8,2483.5,4.728]
[1749269538619,4.01253,2483.6,2483.5,4.728]
[1749269549027,0.80476,2483.5,2483.4,0.6798]
[1749269549227,1.50626,2483.5,2483.4,0.6798]
[1749269549923,0.7015,2483.5,2483.4,2.7787]
[1749269550127,4.01255,2483.6,2483.4,2.77867]
[1749269550328,3.2078,2483.6,2483.5,2.78557]
[1749269550529,0.87423834,2483.7,2483.5,2.78554]
[1749269550731,0.87423834,2483.7,2483.6,1.2941]
[1749269550925,0.87423834,2483.7,2483.6,2.09883]
[1749269551328,0.06951834,2483.7,2483.6,2.09883]
[1749269551828,0.06951834,2483.7,2483.6,6.82683]
[1749269557835,0.00603707,2483.9,2483.8,0.80467]
[1749269558534,0.00603707,2483.9,2483.8,4.68357]
[1749269570158,0.07555541,2483.9,2483.8,4.68357]
[1749269586659,0.07555541,2483.9,2483.8,4.01247]
[1749269587067,1.40345541,2483.9,2483.8,0.80467]
[1749269587261,3.60796865,2483.9,2483.8,4.726]
[1749269587565,2.80331865,2483.9,2483.8,4.726]
[1749269588770,2.80331865,2483.9,2483.8,5.53067]
[1749269588968,1.47541865,2483.9,2483.8,5.53067]
[1749269590869,1.47503347,2483.9,2483.8,5.53067]
[1749269591368,1.47503347,2483.9,2483.8,4.726]
[1749269591568,2.80383347,2483.9,2483.8,4.726]
[1749269592063,2.80383347,2483.9,2483.8,5.53067]
[1749269592362,2.80383347,2483.9,2483.8,4.726]
[1749269592767,2.80361789,2483.9,2483.8,4.726]
[1749269593365,2.80361789,2483.9,2483.8,5.53067]
[1749269594272,2.80361789,2483.9,2483.7,0.80468]
[1749269594475,1.40435541,2483.9,2483.8,4.726]
[1749269594675,2.80364768,2483.9,2483.7,0.80468]
[1749269594868,2.20899541,2483.9,2483.8,4.726]
[1749269595070,2.27934596,2483.9,2483.8,4.726]
[1749269595272,0.80467,2483.8,2483.7,4.726]
[1749269595467,1.39915055,2483.8,2483.7,4.726]
[1749269595672,1.39897231,2483.8,2483.7,5.5307]
[1749269595976,0.07555541,2483.9,2483.8,0.80467]
[1749269596175,1.47449973,2483.9,2483.8,0.80467]
[1749269597279,1.47449973,2483.9,2483.7,5.53068]
[1749269597475,0.07555541,2483.9,2483.7,5.53068]
[1749269598377,0.07555541,2483.9,2483.8,0.80467]
[1749269598579,1.47435926,2483.9,2483.8,0.80467]
[1749269599475,1.47435926,2483.9,2483.7,5.53068]
[1749269599676,0.07555541,2483.9,2483.8,0.80467]
[1749269599878,1.47419285,2483.9,2483.8,0.80467]
[1749269601083,2.27883285,2483.9,2483.7,5.53068]
[1749269601280,0.07555541,2483.9,2483.8,0.80467]
[1749269601479,1.4740439,2483.9,2483.8,0.80467]
[1749269602382,2.2786839,2483.9,2483.7,5.53068]
[1749269602678,0.07555541,2483.9,2483.7,5.53068]
[1749269603281,0.88019541,2483.9,2483.7,5.53068]
[1749269603481,4.60612412,2483.8,2483.4,4.726]
[1749269603684,2.20303412,2483.7,2483.4,5.53077]
[1749269603985,1.39832412,2483.6,2483.5,0.80476]
[1749269604884,1.39832412,2483.6,2483.5,1.48406]
[1749269607377,1.39832412,2483.6,2483.5,0.80476]
[1749269610085,1.39832412,2483.6,2483.4,5.53079]
[1749269610291,1.48202,2483.7,2483.4,5.53079]
[1749269610478,1.39682817,2483.6,2483.5,0.80477]
[1749269611577,1.39682817,2483.6,2483.4,4.726]
[1749269611780,1.482,2483.7,2483.4,4.726]
[1749269611986,1.39683852,2483.6,2483.4,4.726]
[1749269612181,1.482,2483.7,2483.4,4.726]
[1749269612479,1.3969425,2483.6,2483.5,0.80476]
[1749269612684,1.3969425,2483.6,2483.4,5.53078]
[1749269612877,1.482,2483.7,2483.4,5.53078]
[1749269613079,1.39694226,2483.6,2483.4,5.53078]
[1749269613283,1.48202,2483.7,2483.5,0.80476]
[1749269613485,1.39708025,2483.6,2483.5,0.80476]
[1749269614480,1.39708025,2483.6,2483.5,2.16776]
[1749269615084,0.6773,2483.7,2483.6,0.80473]
[1749269615384,2.07501537,2483.7,2483.6,1.49083]
[1749269615587,1.39771537,2483.7,2483.6,1.49083]
[1749269616087,1.46723371,2483.7,2483.6,1.49083]
[1749269616387,1.46723371,2483.7,2483.6,0.6861]
[1749269616580,1.46723371,2483.7,2483.6,1.49083]
[1749269617690,1.46723371,2483.7,2483.6,0.6861]
[1749269617889,1.46723371,2483.7,2483.6,1.49083]
[1749269621897,2.27193371,2483.7,2483.6,0.6861]
[1749269622194,2.27193371,2483.7,2483.6,1.49084]
[1749269622195,2.11883371,2483.7,2483.6,1.49084]
[1749269623895,2.92352371,2483.7,2483.6,0.6861]
[1749269624395,2.11883371,2483.7,2483.6,0.6861]
[1749269624696,2.11883371,2483.7,2483.6,1.49084]
[1749269625297,1.46723371,2483.7,2483.6,1.49084]
[1749269635613,1.46811884,2483.7,2483.6,1.49084]
[1749269638504,0.06951834,2483.7,2483.6,1.49084]
[1749269642112,8.34e-06,2483.7,2483.6,1.49084]
[1749269649109,8.34e-06,2483.7,2483.6,6.49084]
[1749269653219,8.34e-06,2483.7,2483.6,30.83284]
[1749269654514,8.34e-06,2483.7,2483.6,25.83284]
[1749269657722,8.34e-06,2483.7,2483.6,44.18884]
[1749269664728,8.34e-06,2483.7,2483.6,25.83284]
[1749269665027,8.34e-06,2483.7,2483.6,44.18684]
[1749269671123,8.34e-06,2483.7,2483.6,25.83284]
[1749269671521,8.34e-06,2483.7,2483.6,48.22174]
[1749269671727,8.34e-06,2483.7,2483.6,25.14674]
[1749269671920,8.34e-06,2483.7,2483.6,29.86874]
[1749269682132,8.34e-06,2483.7,2483.6,25.14674]
[1749269682337,8.34e-06,2483.7,2483.6,29.86674]
[1749269698055,8.34e-06,2483.7,2483.6,31.84144]
[1749269701950,1.41358805,2483.7,2483.6,31.84144]
[1749269705558,1.41358805,2483.7,2483.6,7.49944]
[1749269705962,1.41358805,2483.7,2483.6,6.16634]
[1749269709264,8.34e-06,2483.7,2483.6,7.51804]
[1749269714174,8.34e-06,2483.7,2483.6,12.51804]
[1749269715374,8.34e-06,2483.7,2483.6,7.51804]
[1749269723771,5.41e-06,2483.9,2483.8,0.80466]
[1749269723972,3.77430772,2485.1,2484.8,0.80434]
[1749269724277,4.63507656,2484.9,2484.8,5.52034]
[1749269725071,4.63507656,2484.9,2484.8,4.716]
[1749269725271,5.92867656,2484.9,2484.8,4.716]
[1749269725473,5.92867656,2484.9,2484.8,5.52034]
[1749269726881,4.63507656,2484.9,2484.8,5.52034]
[1749269727683,3.2078,2484.9,2484.8,5.52034]
[1749269730286,0.80437,2484.7,2484.6,0.00603707]
[1749269730489,2.22957041,2484.7,2484.6,0.00603707]
[1749269730679,7.22957041,2484.7,2484.6,0.00603707]
[1749269730988,0.8044,2484.6,2484.5,4.716]
[1749269731279,6.74310041,2484.6,2484.5,4.716]
[1749269731482,10.93870041,2484.6,2484.3,4.716]
[1749269731685,3.39820041,2484.5,2484.3,5.52049]
[1749269731886,1.3057,2484.4,2484.3,5.52049]
[1749269732385,1.3057,2484.4,2484.3,0.80449]
[1749269732585,1.3057,2484.4,2484.3,5.52049]
[1749269732981,7.11017,2484.4,2484.3,4.716]
[1749269733186,8.53560673,2484.4,2484.3,4.716]
[1749269734087,9.20030673,2484.4,2484.3,4.716]
[1749269734685,9.26982507,2484.4,2484.3,4.716]
[1749269739390,4.26982507,2484.4,2484.3,4.716]
[1749269740290,8.46535507,2484.4,2483.6,0.6931]
[1749269740592,0.80459,2484.1,2483.9,0.80462]
[1749269740784,2.6223,2484.0,2483.9,0.80462]
[1749269742596,2.6223,2484.0,2483.8,0.80465]
[1749269743894,2.6223,2484.0,2483.9,0.80464]
[1749269744493,2.6223,2484.0,2483.8,0.80464]
[1749269744994,1.3488,2484.0,2483.8,0.80464]
[1749269745591,1.3488,2484.0,2483.9,0.80463]
[1749269746798,0.6627,2484.0,2483.9,0.80463]
[1749269748493,3.2078,2484.3,2484.1,0.80455]
[1749269748699,2.08992982,2484.2,2484.1,0.80455]
[1749269750299,2.08992982,2484.2,2484.1,1.46145]
[1749269750500,0.6649,2484.2,2484.1,1.46145]
[1749269750999,0.6649,2484.2,2484.1,0.80455]
[1749269751302,2.08988214,2484.2,2484.1,0.80455]
[1749269751714,2.08988214,2484.2,2484.0,6.15278]
[1749269752014,0.6649,2484.2,2484.1,0.80457]
[1749269752213,2.09001564,2484.2,2484.1,0.80457]
[1749269754315,2.09001564,2484.2,2484.0,5.3482]
[1749269754617,1.42542235,2484.1,2484.0,5.51758]
[1749269759220,1.42542235,2484.1,2484.0,0.80458]
[1749269759520,1.42542235,2484.1,2484.0,5.51758]
[1749269764219,1.42542235,2484.1,2484.0,4.713]
[1749269764418,1.42542235,2484.1,2484.0,5.5176]
[1749269765221,1.49494069,2484.1,2484.0,4.713]
[1749269765520,1.49494069,2484.1,2484.0,5.5176]
[1749269766924,1.49926382,2484.1,2484.0,5.5176]
[1749269772422,1.49932893,2484.1,2484.0,5.5176]
[1749269774931,1.49932893,2484.1,2484.0,6.7929]
[1749269778819,1.49758728,2484.1,2484.0,6.7929]
[1749269782531,1.49758728,2484.1,2484.0,7.4356]
[1749269783329,0.06951834,2484.1,2484.0,7.4356]
[1749269783524,1.49832987,2484.1,2484.0,7.4356]
[1749269783729,1.49832987,2484.1,2484.0,6.1603]
[1749269788438,1.49832987,2484.1,2484.0,7.4778]
[1749269789237,1.49832987,2484.1,2484.0,10.6856]
[1749269790833,3.2078,2485.0,2484.7,0.80434]
[1749269791028,1.42859706,2484.9,2484.6,4.71]
[1749269791231,1.42859706,2484.8,2484.7,1.48865]
[1749269791436,3.8763,2485.0,2484.7,2.7181]
[1749269791639,1.42760336,2484.9,2484.8,0.80434]
[1749269792341,1.42760336,2484.9,2484.8,2.15474]
[1749269794143,1.42558795,2484.9,2484.8,2.15474]
[1749269794538,1.49510629,2484.9,2484.8,2.15474]
[1749269798537,0.06951834,2484.9,2484.8,2.15474]
[1749269799045,0.06951834,2484.9,2484.8,5.36254]
[1749269807151,3.8536,2485.4,2485.0,0.80428]
[1749269807455,0.6458,2485.4,2485.3,0.80418]
[1749269808954,0.6458,2485.4,2485.3,5.50918]
[1749269809352,0.6458,2485.4,2485.3,0.80418]
[1749269809552,0.6458,2485.4,2485.3,5.50918]
[1749269810059,0.6458,2485.4,2485.3,0.80418]
[1749269810353,0.6458,2485.4,2485.3,5.50918]
[1749269813550,3.8536,2485.4,2485.1,0.00603707]
[1749269813756,2.75509746,2485.3,2485.1,0.00603707]
[1749269813953,3.8536,2485.4,2485.1,0.00603707]
[1749269813954,3.8536,2485.4,2485.3,0.80418]
[1749269814256,5.27812657,2485.4,2485.3,0.80418]
[1749269814451,2.07032657,2485.4,2485.3,0.80418]
[1749269815261,2.07032657,2485.4,2485.2,0.8042]
[1749269815460,0.6458,2485.4,2485.3,0.80418]
[1749269815762,4.16111523,2485.4,2485.2,0.8042]
[1749269816054,4.16111523,2485.4,2485.1,0.00603707]
[1749269816055,0.80419,2485.3,2485.1,0.81025707]
[1749269816260,2.09049,2485.3,2485.1,0.00603707]
[1749269816560,0.80421,2485.2,2485.1,0.00603707]
[1749269816858,3.51556853,2485.2,2485.1,4.71103707]
[1749269817247,2.71135853,2485.2,2485.1,5.51528707]
[1749269817648,3.37895853,2485.2,2485.1,5.51528707]
[1749269820066,2.09265853,2485.2,2485.1,5.51528707]
[1749269820858,1.42505853,2485.2,2485.1,5.51528707]
[1749269821863,1.42505853,2485.2,2485.1,8.72308707]
[1749269822062,0.70263707,2485.6,2485.5,0.80412]
[1749269822256,2.12838263,2485.6,2485.5,5.50912]
[1749269822866,1.43178263,2485.6,2485.5,5.50912]
[1749269823363,0.00603707,2485.6,2485.5,6.83432]
[1749269823860,3.2078,2486.0,2485.9,0.80399]
[1749269824063,4.63397174,2486.0,2485.9,5.50899]
[1749269824657,0.6711,2486.2,2485.9,8.71679]
[1749269824857,0.6711,2486.2,2486.1,0.80392]
[1749269825064,0.00603707,2486.3,2486.0,2.6621]
[1749269825256,0.00603707,2486.3,2486.2,0.80389]
[1749269825462,0.00603707,2486.3,2486.2,5.50889]
[1749269828075,0.00603707,2486.3,2486.2,8.71669]
[1749269831464,0.00603707,2486.3,2486.2,13.71669]
[1749269831670,3.2078,2486.9,2486.8,0.8037]
[1749269831872,3.2078,2486.9,2486.8,5.5047]
[1749269832070,0.6761,2487.0,2486.9,0.80366]
[1749269832268,0.6761,2487.0,2486.8,5.50468]
[1749269832269,2.09548034,2487.0,2486.8,5.50468]
[1749269832462,0.6761,2487.0,2486.8,5.50468]
[1749269832862,0.6761,2487.0,2486.9,0.80366]
[1749269837574,0.00603707,2487.1,2487.0,0.80363]
[1749269838975,0.00603707,2487.1,2487.0,2.19263]
[1749269839167,0.00603707,2487.1,2486.7,0.00603707]
[1749269839364,0.00603707,2487.1,2486.8,4.7]
[1749269839365,3.21383707,2487.1,2486.8,4.7]
[1749269839577,0.80364,2487.0,2486.8,4.7]
[1749269839773,3.48494,2487.0,2486.8,4.7]
[1749269840179,2.6813,2487.0,2486.8,5.50369]
[1749269840779,1.3081,2487.0,2486.9,0.80366]
[1749269841079,1.3081,2487.0,2486.8,5.50368]
[1749269841280,1.3081,2487.0,2486.9,0.80366]
[1749269842185,1.3081,2487.0,2486.8,5.50368]
[1749269842378,1.3081,2487.0,2486.9,0.80366]
[1749269842576,0.6669,2487.0,2486.9,0.80366]
[1749269842771,0.00603707,2487.1,2487.0,0.80363]
[1749269844281,3.2078,2487.7,2487.1,2.00901]
[1749269844481,0.6643,2488.0,2487.6,0.80342]
[1749269844482,1.46764,2488.0,2487.6,0.80342]
[1749269844680,1.41617314,2487.9,2487.6,5.50242]
[1749269844879,1.46763,2488.0,2487.6,5.50242]
[1749269845186,2.21949301,2487.9,2487.6,5.50242]
[1749269845394,1.47366707,2488.0,2487.7,0.8034]
[1749269845585,0.67033707,2488.0,2487.8,0.80337]
[1749269845780,0.67033707,2488.0,2487.9,0.80334]
[1749269846085,2.08587813,2488.0,2487.8,0.80335]
[1749269846282,0.67033707,2488.0,2487.6,6.0051]
[1749269846482,0.67033707,2488.0,2487.8,0.80335]
[1749269846687,0.67033707,2488.0,2487.9,0.80334]
[1749269847388,0.67033707,2488.0,2487.7,0.6977]
[1749269847588,0.67033707,2488.0,2487.8,0.80337]
[1749269849089,0.67033707,2488.0,2487.9,0.80334]
[1749269849291,0.67033707,2488.0,2487.8,0.80335]
[1749269849886,0.67033707,2488.0,2487.7,1.50108]
[1749269850084,0.67033707,2488.0,2487.8,0.80337]
[1749269850285,1.47364707,2488.0,2487.9,4.699]
[1749269850483,2.08493062,2488.0,2487.7,4.699]
[1749269850789,4.01117,2487.8,2487.7,4.698]
[1749269850990,5.42576355,2487.8,2487.7,4.698]
[1749269851187,6.75286355,2487.8,2487.7,4.698]
[1749269851392,6.75437668,2487.8,2487.7,4.698]
[1749269852394,6.75534519,2487.8,2487.7,4.698]
[1749269853695,0.80344,2487.6,2487.5,4.698]
[1749269853989,0.80348,2487.5,2487.4,4.698]
[1749269854194,2.91555519,2487.5,2487.4,4.698]
[1749269854396,2.11207519,2487.5,2487.4,5.5015]
[1749269854595,1.41707519,2487.5,2487.4,5.5015]
[1749269854796,0.80343,2487.7,2487.4,5.5015]
[1749269854797,0.80343,2487.7,2487.5,0.80347]
[1749269854993,1.41862952,2487.6,2487.5,0.80347]
[1749269857694,1.41862952,2487.6,2487.4,5.5015]
[1749269857896,1.41862952,2487.5,2487.4,5.5015]
[1749269858094,4.01122,2487.7,2487.4,5.5015]
[1749269858095,1.41862952,2487.6,2487.4,4.698]
[1749269858395,1.41862952,2487.5,2487.4,4.698]
[1749269858598,1.41862952,2487.5,2487.4,5.5015]
[1749269858793,1.41862952,2487.6,2487.4,4.698]
[1749269858999,0.80337,2487.8,2487.5,2.6219]
[1749269859196,1.41507143,2487.7,2487.5,3.42536]
[1749269859491,1.41507143,2487.6,2487.5,3.42536]
[1749269859995,1.41507143,2487.6,2487.5,2.6219]
[1749269860295,2.21851143,2487.6,2487.5,6.0075]
[1749269860699,2.21851143,2487.6,2487.5,5.3763]
[1749269861597,0.80349,2487.5,2487.3,0.80353]
[1749269861792,0.80347,2487.5,2487.4,4.697]
[1749269862097,2.22006668,2487.5,2487.4,4.697]
[1749269862701,0.80351,2487.4,2487.2,1.3408]
[1749269862894,3.2078,2487.4,2487.0,27.5238]
[1749269863201,0.80357,2487.2,2487.1,4.696]
[1749269863399,5.42827681,2487.2,2487.1,4.696]
[1749269863599,5.42827681,2487.2,2486.8,0.664]
[1749269863600,0.80367,2486.9,2486.8,4.696]
[1749269863797,1.41690681,2486.9,2486.8,4.696]
[1749269863996,1.41690681,2486.9,2486.8,5.4997]
[1749269864200,2.22056681,2486.9,2486.8,4.696]
[1749269864502,1.41690681,2486.9,2486.8,4.696]
[1749269866203,2.22056681,2486.9,2486.8,4.696]
[1749269867202,5.42836681,2486.9,2486.8,4.696]
[1749269867702,4.62470681,2486.9,2486.8,4.696]
[1749269867906,5.42836681,2486.9,2486.8,4.696]
[1749269869702,1.41690681,2486.9,2486.8,5.4997]
[1749269869904,1.41690681,2486.9,2486.8,7.4495]
[1749269871806,3.2078,2487.2,2486.8,6.6458]
[1749269872010,1.41209323,2487.1,2487.0,0.80363]
[1749269872307,1.41209323,2487.1,2487.0,6.77313]
[1749269872503,3.2078,2487.2,2487.1,0.8036]
[1749269872903,1.44688,2487.5,2487.1,0.8036]
[1749269873206,1.41204032,2487.4,2487.2,2.12246]
[1749269873406,1.44689,2487.5,2487.3,4.697]
[1749269873708,1.41203892,2487.4,2487.3,5.3877]
[1749269873907,2.21553892,2487.4,2487.3,5.3877]
[1749269874809,1.41203892,2487.4,2487.3,5.3877]
[1749269875010,2.21553892,2487.4,2487.3,5.3877]
[1749269877908,5.42333892,2487.4,2487.3,5.3877]
[1749269878411,5.42333892,2487.4,2487.3,4.697]
[1749269878812,4.61983892,2487.4,2487.3,5.50054]
[1749269879106,9.61983892,2487.4,2486.9,0.6433]
[1749269879313,4.0114,2487.1,2487.0,4.697]
[1749269879516,5.42343892,2487.1,2487.0,4.697]
[1749269879815,4.61983892,2487.1,2486.7,0.64453707]
[1749269880113,2.08013892,2487.0,2486.8,5.50068]
[1749269880308,1.41203892,2486.9,2486.8,5.50068]
[1749269880706,2.21569892,2486.9,2486.7,0.64453707]
[1749269880910,1.47175,2487.0,2486.8,4.697]
[1749269881109,1.41456715,2486.9,2486.8,4.697]
[1749269881305,2.21822715,2486.9,2486.8,4.697]
[1749269881507,0.8037,2486.8,2486.7,4.70303707]
[1749269881712,2.21826715,2486.8,2486.7,4.70303707]
[1749269882005,2.21826715,2486.8,2486.7,0.00603707]
[1749269882006,5.42606715,2486.8,2486.7,0.00603707]
[1749269884727,4.62236715,2486.8,2486.7,0.00603707]
[1749269885527,4.62236715,2486.8,2486.7,0.80976707]
[1749269885823,1.41456715,2486.8,2486.7,2.16176707]
[1749269886728,5.42606715,2486.8,2486.7,4.70403707]
[1749269889227,5.42606715,2486.8,2486.7,0.00603707]
[1749269889621,10.42606715,2486.8,2486.7,0.00603707]
[1749269890228,1.41456715,2486.8,2486.7,0.80415429]
[1749269891728,1.41456715,2486.8,2486.7,2.09715429]
[1749269892422,1.41456715,2486.8,2486.7,6.80915429]
[1749269893025,3.2078,2487.1,2486.9,0.80365]
[1749269893327,1.41519853,2487.0,2486.9,0.80365]
[1749269894327,1.41519853,2487.0,2486.8,2.09668]
[1749269894625,1.41519853,2486.9,2486.8,2.09668]
[1749269895428,3.2078,2487.1,2486.9,0.80366]
[1749269895632,1.41553927,2487.0,2486.9,2.15596]
[1749269895832,1.41553927,2487.0,2486.9,6.86796]
[1749269903336,1.41553927,2487.0,2486.9,6.86696]
[1749269907741,1.41553927,2487.0,2486.9,5.51466]
[1749269908139,2.05493927,2487.0,2486.9,5.51466]
[1749269913245,2.05493927,2487.0,2486.9,7.13116]
[1749269913641,2.05493927,2487.0,2486.9,6.3275]
[1749269913949,2.05493927,2487.0,2486.9,7.13116]
[1749269918948,2.05493927,2487.0,2486.9,8.44396]
[1749269921144,2.05493927,2487.0,2486.9,7.13116]
[1749269925149,2.05493927,2487.0,2486.9,7.11716]
[1749269928056,1.41553927,2487.0,2486.9,7.11716]
[1749269928353,1.41553927,2487.0,2486.9,8.51696]
[1749269929354,1.41553927,2487.0,2486.9,7.11716]
[1749269929855,1.41553927,2487.0,2486.9,6.3135]
[1749269930358,1.41553927,2487.0,2486.9,7.11716]
[1749269931757,1.41553927,2487.0,2486.9,2.42016]
[1749269931957,2.21916927,2487.0,2486.9,6.3135]
[1749269932457,1.41553927,2487.0,2486.9,7.11716]
[1749269936760,1.41553927,2487.0,2486.9,2.42016]
[1749269937055,1.41553927,2487.0,2486.9,7.11716]
[1749269938058,1.41553927,2487.0,2486.9,2.42016]
[1749269938358,1.41553927,2487.0,2486.9,6.3135]
[1749269938753,1.41553927,2487.0,2486.9,7.11716]
[1749269939052,1.41553927,2487.0,2486.9,6.3135]
[1749269939250,1.41553927,2487.0,2486.9,7.11716]
[1749269943766,1.41553927,2487.0,2486.9,6.3135]
[1749269943958,1.41553927,2487.0,2486.9,7.11716]
[1749269944463,1.41553927,2487.0,2486.9,6.3135]
[1749269944658,1.41553927,2487.0,2486.9,7.11716]
[1749269945162,1.41553927,2487.0,2486.9,6.3135]
[1749269945355,2.21916927,2487.0,2486.9,1.6165]
[1749269945557,8.53706927,2487.0,2486.9,1.31498602]
[1749269946460,8.53706927,2487.0,2486.9,0.92300847]
[1749269947460,3.53706927,2487.0,2486.9,0.92300847]
[1749269948457,6.74486927,2487.0,2486.9,0.92300847]
[1749269954565,5.42696927,2487.0,2486.9,0.92300847]
[1749269958363,1.41553927,2487.0,2486.9,1.72668847]
[1749269958963,1.41553927,2487.0,2486.9,3.05538847]
[1749269959270,2.23932258,2487.0,2486.9,2.25170847]
[1749269960464,1.43568258,2487.0,2486.9,3.05538847]
[1749269965067,1.43568258,2487.0,2486.9,2.25170847]
[1749269965272,5.44712258,2487.0,2486.9,0.92300847]
[1749269967472,6.14242258,2487.0,2486.9,0.92300847]
[1749269969482,6.14242258,2487.0,2486.9,0.62147421]
[1749269970582,2.93462258,2487.0,2486.9,0.62147421]
[1749269970976,6.14242258,2487.0,2486.9,0.62147421]
[1749269972284,0.80371,2486.8,2486.7,0.00042429]
[1749269972476,2.23939258,2486.8,2486.7,0.00042429]
[1749269972880,3.60249258,2486.8,2486.7,0.00042429]
[1749269974185,2.23939258,2486.8,2486.7,0.00042429]
[1749269974586,1.43568258,2486.8,2486.7,0.80416429]
[1749269975481,1.43568258,2486.8,2486.7,2.18466429]
[1749269980090,1.43568258,2486.8,2486.7,4.69742429]
[1749269982088,1.43568258,2486.8,2486.7,5.50116429]
[1749269988695,1.43568258,2486.8,2486.7,6.90186429]
[1749269989196,1.43568258,2486.8,2486.7,0.00042429]
[1749269989391,2.23939258,2486.8,2486.7,0.00042429]
[1749269997192,7.23939258,2486.8,2486.7,0.00042429]
[1749269997392,7.23939258,2486.8,2486.1,0.676]
[1749269997393,0.8039,2486.2,2486.1,5.371]
[1749269998300,2.23958258,2486.2,2486.1,5.371]
[1749269998500,2.23958258,2486.2,2486.1,6.17493]
[1749269998700,2.23958258,2486.2,2486.1,5.371]
[1749269999192,1.43568258,2486.2,2486.1,6.17493]
[1749269999394,1.43568258,2486.2,2486.1,7.45733]
[1749270000803,1.43568258,2486.2,2486.1,6.6534]
[1749270000997,2.23958258,2486.2,2486.1,1.9584]
[1749270001192,2.23958258,2486.2,2486.1,0.676]
[1749270001502,1.43568258,2486.2,2486.1,0.676]
[1749270001702,2.23958258,2486.2,2486.1,0.676]
[1749270004598,0.80393,2486.1,2486.0,29.668]
[1749270004800,2.23961258,2486.1,2486.0,0.656]
[1749270005106,2.23961258,2486.1,2486.0,4.696]
[1749270011809,2.23961258,2486.1,2486.0,5.49997]
[1749270012107,1.43568258,2486.1,2486.0,6.89467]
[1749270012610,2.23961258,2486.1,2486.0,6.89467]
[1749270012813,2.23961258,2486.1,2486.0,6.0907]
[1749270017514,2.23961258,2486.1,2486.0,6.89467]
[1749270017717,1.43568258,2486.1,2486.0,6.89467]
[1749270018314,2.23961258,2486.1,2486.0,6.0907]
[1749270018816,1.43568258,2486.1,2486.0,6.89467]
[1749270019420,0.00603707,2486.4,2486.1,0.80391]
[1749270019607,1.42419144,2486.3,2486.2,1.3684]
[1749270019807,2.22806144,2486.3,2486.2,1.3684]
[1749270023917,1.42419144,2486.3,2486.2,2.1723]
[1749270025324,2.22806144,2486.3,2486.2,2.1723]
[1749270025738,2.22806144,2486.3,2486.2,1.3684]
[1749270026231,1.42419144,2486.3,2486.2,2.1723]
[1749270027130,2.22806144,2486.3,2486.2,1.3684]
[1749270028927,1.42419144,2486.3,2486.2,1.3684]
[1749270029232,1.42419144,2486.3,2486.2,2.1723]
[1749270035135,1.42419144,2486.3,2486.2,7.1723]
[1749270035337,0.00603707,2486.4,2486.3,0.80387]
[1749270035538,1.4292547,2486.4,2486.3,7.45327]
[1749270039243,0.00603707,2486.4,2486.3,7.45327]
[1749270048555,0.00603707,2486.4,2486.3,1.44987]
[1749270048746,1.42558175,2486.4,2486.3,5.49587]
[1749270049147,2.11198175,2486.4,2486.3,5.49587]
[1749270054162,2.11198175,2486.4,2486.3,0.80387]
[1749270054358,2.11198175,2486.4,2486.3,5.49587]
[1749270061960,2.11198175,2486.4,2486.3,4.692]
[1749270062164,2.91582175,2486.4,2485.9,0.00603707]
[1749270062360,3.36804468,2486.3,2486.2,0.8039]
[1749270064360,1.41954468,2486.3,2486.2,0.8039]
[1749270065267,1.41954468,2486.3,2486.2,2.1557]
[1749270066768,1.41954468,2486.3,2486.2,0.8039]
[1749270071373,1.41954468,2486.3,2486.2,2.1799]
[1749270075872,1.41954468,2486.3,2486.2,2.8562]
[1749270078877,0.69243707,2486.4,2486.3,0.80387]
[1749270078878,0.00603707,2486.4,2486.3,0.80387]
[1749270079071,0.00603707,2486.4,2486.3,9.99637]
[1749270083978,0.00603707,2486.4,2486.3,6.78857]
[1749270084173,0.00603707,2486.4,2486.3,9.99637]
[1749270096787,0.6546,2486.9,2486.8,0.80371]
[1749270096987,2.05675039,2486.9,2486.8,5.49371]
[1749270099186,2.86043039,2486.9,2486.8,4.69]
[1749270099591,0.80371,2486.8,2486.7,4.69]